[Event "World Senior chT-65 2019"]
[Site "Rhodes"]
[Date "2019.04.21"]
[Round "6.3"]
[White "Rashkovsky, Nukhim N"]
[Black "Maryasin, Boris"]
[Result "1-0"]
[ECO "E14"]
[WhiteElo "2488"]
[BlackElo "2297"]
[Annotator "ChessBase"]
[PlyCount "107"]
[EventDate "2019.04.16"]
[EventType "team-tourn"]
[EventCountry "GRE"]
[SourceTitle "playchess.com"]
[Source "ChessBase"]
[SourceQuality "1"]
[WhiteTeam "Russia"]
[BlackTeam "Israel"]
[WhiteTeamCountry "RUS"]
[BlackTeamCountry "ISR"]
[TimeControl "40/5400+30:1800+30"]

1. d4 {[%emt 0:00:00]} Nf6 {[%emt 0:00:00]} 2. Nf3 {[%emt 0:00:00]} e6 {[%emt 0:00:16]} 3. c4 {[%emt 0:00:00]} d5 {[%emt 0:00:08]} 4. e3 {[%emt 0:00:06]} b6 {[%emt 0:00:28]} 5. Nc3 {[%emt 0:01:29]} Bb7 {[%emt 0:00:41]} 6. Qa4+ {[%emt 0:00:49]} c6 {[%emt 0:02:31]} 7. cxd5 {[%emt 0:00:39]} exd5 {[%emt 0:00:40]} 8. Bd3 {[%emt 0:00:07]} Bd6 {[%emt 0:00:40]} 9. e4 {[%emt 0:03:08]} dxe4 {[%emt 0:08:48]} 10. Nxe4 {[%emt 0:01:08]} Be7 {[%emt 0:02:07]} 11. O-O {[%emt 0:01:42]} O-O {[%emt 0:00:37]} 12. Nxf6+ {[%emt 0:08:25]} Bxf6 {[%emt 0:00:10]} 13. Be4 {[%emt 0:00:01]} Qd6 {[%emt 0:05:28]} 14. g3 {[%emt 0:02:19]} Na6 {[%emt 0:04:59]} 15. Bf4 {[%emt 0:00:59]} Qd7 {[%emt 0:02:05]} 16. Rac1 {[%emt 0:15:15]} b5 {[%emt 0:01:27]} 17. Qc2 {[%emt 0:12:04]} c5 {[%emt 0:07:52]} 18. dxc5 {[%emt 0:05:20]} Nxc5 {[%emt 0:00:46]} 19. Bxb7 {[%emt 0:00:15]} Nxb7 {[%emt 0:00:31]} 20. Rfd1 {[%emt 0:02:44]} Qg4 {[%emt 0:03:23]} 21. Qe4 {[%emt 0:13:57]} Na5 {[%emt 0:00:55]} 22. Ne5 {[%emt 0:01:23]} Qe6 {[%emt 0:05:59]} 23. Qd5 {[%emt 0:04:49]} Nc4 {[%emt 0:07:05]} 24. Qxe6 {[%emt 0:03:18]} fxe6 {[%emt 0:00:08]} 25. Nxc4 {[%emt 0:00:11]} bxc4 {[%emt 0:00:08]} 26. Rxc4 {[%emt 0:00:16]} Bxb2 {[%emt 0:00:21]} 27. Rc6 {[%emt 0:00:27]} e5 {[%emt 0:07:07]} 28. Be3 {[%emt 0:00:04]} a5 {[%emt 0:03:36]} 29. a4 {[%emt 0:02:46]} Rac8 {[%emt 0:03:02]} 30. Rdd6 {[%emt 0:01:55]} Bc3 {[%emt 0:05:58]} 31. Kf1 {[%emt 0:01:20]} Bb4 {[%emt 0:02:08]} 32. Re6 {[%emt 0:00:05]} Rxc6 {[%emt 0:00:55]} 33. Rxc6 {[%emt 0:00:01]} Kf7 {[%emt 0:00:44]} 34. Ke2 {[%emt 0:00:08]} Rd8 {[%emt 0:00:57]} 35. g4 {[%emt 0:04:03]} Rd7 {[%emt 0:01:50]} 36. h4 {[%emt 0:00:17]} h6 {[%emt 0:02:23]} 37. Kf3 {[%emt 0:03:51]} Rd1 {[%emt 0:02:59]} 38. Ke4 {[%emt 0:00:09]} Ra1 {[%emt 0:00:48]} 39. Kf5 {[%emt 0:00:33]} Rxa4 {[%emt 0:03:04]} 40. Rc7+ {[%emt 0:00:00]} Kg8 {[%emt 0:00:00]} 41. g5 {[%emt 0:01:57]} hxg5 {[%emt 0:01:31]} 42. hxg5 {[%emt 0:01:40]} Ra3 {[%emt 0:02:47]} 43. Rc8+ {[%emt 0:02:38]} Kf7 {[%emt 0:03:55]} 44. g6+ {[%emt 0:00:05]} Ke7 {[%emt 0:00:05]} 45. Rg8 {[%emt 0:00:30]} Rc3 {[%emt 0:02:58]} 46. Rxg7+ {[%emt 0:00:23]} Kf8 {[%emt 0:00:11]} 47. Rb7 {[%emt 0:05:46]} Rc8 {[%emt 0:01:37]} 48. Bg5 {[%emt 0:00:54]} e4 {[%emt 0:00:47]} 49. Kxe4 {[%emt 0:06:24]} Bc3 {[%emt 0:00:13]} 50. f4 {[%emt 0:00:32]} Ra8 {[%emt 0:04:52]} 51. f5 {[%emt 0:00:30]} a4 {[%emt 0:00:22]} 52. f6 {[%emt 0:00:11]} a3 {[%emt 0:00:15]} 53. Bh6+ {[%emt 0:00:14]} Kg8 {[%emt 0:00:09]} 54. Rg7+ {[%emt 0:00:56]} 1-0

[Event "World Senior chT-65 2019"]
[Site "Rhodes"]
[Date "2019.04.21"]
[Round "6.4"]
[White "Lederman, Leon"]
[Black "Zhelnin, Vladimir V"]
[Result "0-1"]
[ECO "B93"]
[WhiteElo "2281"]
[BlackElo "2429"]
[Annotator "NA"]
[PlyCount "63"]
[EventDate "2019.04.16"]
[EventType "team-tourn"]
[EventCountry "GRE"]
[SourceTitle "playchess.com"]
[Source "ChessBase"]
[SourceQuality "1"]
[WhiteTeam "Israel"]
[BlackTeam "Russia"]
[WhiteTeamCountry "ISR"]
[BlackTeamCountry "RUS"]
[TimeControl "40/5400+30:1800+30"]

1. e4 {[%emt 0:00:00]} c5 {[%emt 0:00:00]} 2. Nf3 {[%emt 0:00:00]} d6 {[%emt 0:00:00]} 3. d4 {[%emt 0:00:00]} cxd4 {[%emt 0:00:00]} 4. Nxd4 {[%emt 0:00:00]} Nf6 {[%emt 0:00:00]} 5. Nc3 {[%emt 0:00:00]} a6 {[%emt 0:00:19]} 6. f4 {[%emt 0:00:00]} e5 {[%emt 0:01:12]} 7. Nf3 {[%emt 0:00:00]} Qc7 {[%emt 0:00:15]} 8. Bd3 {[%emt 0:00:00]} Be7 {[%emt 0:00:11]} 9. O-O {[%emt 0:00:43]} O-O {[%emt 0:00:38]} 10. Qe1 {[%emt 0:03:10]} Be6 {[%emt 0:03:00]} 11. fxe5 {[%emt 0:00:00]} dxe5 {[%emt 0:01:06]} 12. Nh4 {[%emt 0:12:08]} Nbd7 {[%emt 0:04:21]} 13. Nf5 {[%emt 0:01:12]} Bxf5 {[%emt 0:13:37]} 14. Rxf5 {[%emt 0:10:48]} Nc5 {[%emt 0:06:57]} 15. Qg3 {[%emt 0:05:16]} Nxd3 {[%emt 0:11:33]} 16. cxd3 {[%emt 0:03:40]} Rad8 {[%emt 0:13:43]} 17. Kh1 {[%emt 0:00:53]} Qd6 {[%emt 0:07:45]} 18. Rxe5 {[%emt 0:13:56]} Rfe8 {[%emt 0:20:53]} 19. Rg5 {[%emt 0:00:00]} Bf8 {[%emt 0:00:00]} 20. Qxd6 {[%emt 0:00:00]} Bxd6 {[%emt 0:07:35]} 21. Rf5 {[%emt 0:09:52]} Be5 {[%emt 0:12:07]} 22. Bf4 {[%emt 0:18:51]} Bxc3 {[%emt 0:00:00]} 23. bxc3 {[%emt 0:00:21]} Rxd3 {[%emt 0:02:38]} 24. Re5 {[%emt 0:04:27]} Rxe5 {[%emt 0:00:00]} 25. Bxe5 {[%emt 0:00:18]} Nxe4 {[%emt 0:00:57]} 26. Rc1 {[%emt 0:01:40]} f6 {[%emt 0:00:00]} 27. Bd4 {[%emt 0:00:34]} b5 {[%emt 0:05:17]} 28. a3 {[%emt 0:00:17]} Kf7 {[%emt 0:00:01]} 29. Kg1 {[%emt 0:00:22]} Ke6 {[%emt 0:00:00]} 30. Kf1 {[%emt 0:03:12]} Kd5 {[%emt 0:00:00]} 31. Ke2 {[%emt 0:00:06]} Kc4 {[%emt 0:00:00]} 32. Rb1 {[%emt 0:00:30]} 0-1

[Event "World Senior chT-65 2019"]
[Site "Rhodes"]
[Date "2019.04.21"]
[Round "6.5"]
[White "Karason, Askell O"]
[Black "Westerinen, Heikki M.J."]
[Result "1/2-1/2"]
[ECO "E90"]
[WhiteElo "2252"]
[BlackElo "2286"]
[Annotator "NA"]
[PlyCount "79"]
[EventDate "2019.04.16"]
[EventType "team-tourn"]
[EventCountry "GRE"]
[SourceTitle "playchess.com"]
[Source "ChessBase"]
[SourceQuality "1"]
[WhiteTeam "Iceland"]
[BlackTeam "Finland"]
[WhiteTeamCountry "ISL"]
[BlackTeamCountry "FIN"]
[TimeControl "40/5400+30:1800+30"]

1. Nf3 {[%emt 0:00:00]} Nf6 {[%emt 0:03:52]} 2. c4 {[%emt 0:00:00]} g6 {[%emt 0:02:27]} 3. d4 {[%emt 0:00:07]} Bg7 {[%emt 0:00:11]} 4. Nc3 {[%emt 0:00:05]} O-O {[%emt 0:00:13]} 5. e4 {[%emt 0:00:59]} d6 {[%emt 0:00:11]} 6. h3 {[%emt 0:00:14]} e5 {[%emt 0:03:40]} 7. d5 {[%emt 0:00:45]} Na6 {[%emt 0:03:49]} 8. Bg5 {[%emt 0:00:30]} h6 {[%emt 0:01:12]} 9. Be3 {[%emt 0:00:07]} Nc5 {[%emt 0:01:28]} 10. Nd2 {[%emt 0:00:09]} a5 {[%emt 0:00:24]} 11. g4 {[%emt 0:04:05]} c6 {[%emt 0:08:45]} 12. Be2 {[%emt 0:00:51]} Bd7 {[%emt 0:15:35]} 13. h4 {[%emt 0:07:55]} Ne8 {[%emt 0:05:17]} 14. Qc2 {[%emt 0:07:49]} Nc7 {[%emt 0:07:17]} 15. h5 {[%emt 0:00:54]} g5 {[%emt 0:00:32]} 16. f3 {[%emt 0:00:19]} cxd5 {[%emt 0:01:51]} 17. cxd5 {[%emt 0:00:36]} b5 {[%emt 0:00:58]} 18. Nb3 {[%emt 0:21:22]} Nxb3 {[%emt 0:07:23]} 19. Qxb3 {[%emt 0:11:02]} Qb8 {[%emt 0:04:26]} 20. Kf2 {[%emt 0:00:59]} a4 {[%emt 0:01:37]} 21. Qd1 {[%emt 0:19:52]} b4 {[%emt 0:00:57]} 22. Nb1 {[%emt 0:00:04]} Nb5 {[%emt 0:01:38]} 23. Nd2 {[%emt 0:08:23]} Nd4 {[%emt 0:01:18]} 24. Bc4 {[%emt 0:00:47]} Rc8 {[%emt 0:03:19]} 25. Rc1 {[%emt 0:03:14]} Ra5 {[%emt 0:02:49]} 26. Bd3 {[%emt 0:04:42]} Rxc1 {[%emt 0:04:23]} 27. Qxc1 {[%emt 0:00:08]} Rc5 {[%emt 0:00:27]} 28. Qb1 {[%emt 0:00:26]} Qc7 {[%emt 0:04:28]} 29. b3 {[%emt 0:00:54]} axb3 {[%emt 0:03:39]} 30. Nxb3 {[%emt 0:00:49]} Nxb3 {[%emt 0:03:50]} 31. axb3 {[%emt 0:01:22]} Rc3 {[%emt 0:00:44]} 32. Rc1 {[%emt 0:01:07]} Bf6 {[%emt 0:01:24]} 33. Rxc3 {[%emt 0:01:21]} bxc3 {[%emt 0:02:29]} 34. b4 {[%emt 0:00:09]} Ba4 {[%emt 0:01:22]} 35. b5 {[%emt 0:01:12]} c2 {[%emt 0:01:36]} 36. Qb2 {[%emt 0:02:20]} Bd8 {[%emt 0:00:26]} 37. b6 {[%emt 0:00:13]} c1=Q {[%emt 0:00:38]} 38. Qxc1 {[%emt 0:00:07]} Qxc1 {[%emt 0:00:11]} 39. Bxc1 {[%emt 0:00:03]} Bxb6+ {[%emt 0:00:07]} 40. Ke2 {[%emt 0:00:00]} 1/2-1/2

[Event "World Senior chT-65 2019"]
[Site "Rhodes"]
[Date "2019.04.21"]
[Round "6.6"]
[White "Rantanen, Yrjo A."]
[Black "Gudmundsson, Kristjan"]
[Result "1/2-1/2"]
[ECO "B93"]
[WhiteElo "2283"]
[BlackElo "2268"]
[Annotator "NA"]
[PlyCount "84"]
[EventDate "2019.04.16"]
[EventType "team-tourn"]
[EventCountry "GRE"]
[SourceTitle "playchess.com"]
[Source "ChessBase"]
[SourceQuality "1"]
[WhiteTeam "Finland"]
[BlackTeam "Iceland"]
[WhiteTeamCountry "FIN"]
[BlackTeamCountry "ISL"]
[TimeControl "40/5400+30:1800+30"]

1. e4 {[%emt 0:00:00]} c5 {[%emt 0:00:00]} 2. Nf3 {[%emt 0:00:00]} d6 {[%emt 0:00:00]} 3. d4 {[%emt 0:00:03]} cxd4 {[%emt 0:00:00]} 4. Nxd4 {[%emt 0:00:04]} Nf6 {[%emt 0:00:08]} 5. Nc3 {[%emt 0:00:09]} a6 {[%emt 0:00:03]} 6. f4 {[%emt 0:01:03]} Qc7 {[%emt 0:00:20]} 7. a4 {[%emt 0:00:44]} b6 {[%emt 0:00:08]} 8. Bd3 {[%emt 0:03:29]} Bb7 {[%emt 0:00:26]} 9. O-O {[%emt 0:03:12]} Nbd7 {[%emt 0:00:15]} 10. Kh1 {[%emt 0:06:48]} g6 {[%emt 0:03:29]} 11. Qe1 {[%emt 0:06:35]} Bg7 {[%emt 0:05:39]} 12. Nf3 {[%emt 0:01:26]} e5 {[%emt 0:05:53]} 13. fxe5 {[%emt 0:04:03]} dxe5 {[%emt 0:01:27]} 14. Qh4 {[%emt 0:08:15]} O-O {[%emt 0:08:27]} 15. Be3 {[%emt 0:09:20]} Rae8 {[%emt 0:01:59]} 16. Nd2 {[%emt 0:08:42]} Nh5 {[%emt 0:10:27]} 17. Nc4 {[%emt 0:08:15]} Bc6 {[%emt 0:15:24]} 18. Qf2 {[%emt 0:06:28]} Rb8 {[%emt 0:01:45]} 19. Nd5 {[%emt 0:03:03]} Bxd5 {[%emt 0:00:40]} 20. exd5 {[%emt 0:00:02]} f5 {[%emt 0:04:30]} 21. Qd2 {[%emt 0:05:41]} f4 {[%emt 0:06:13]} 22. Bg1 {[%emt 0:04:24]} e4 {[%emt 0:00:46]} 23. Be2 {[%emt 0:00:38]} e3 {[%emt 0:01:36]} 24. Qb4 {[%emt 0:00:38]} Ne5 {[%emt 0:09:06]} 25. Rad1 {[%emt 0:06:00]} Nxc4 {[%emt 0:04:04]} 26. Bxc4 {[%emt 0:00:55]} Qe5 {[%emt 0:00:53]} 27. Be2 {[%emt 0:01:26]} a5 {[%emt 0:02:15]} 28. Qb3 {[%emt 0:01:00]} Qxb2 {[%emt 0:00:49]} 29. g4 {[%emt 0:02:55]} fxg3 {[%emt 0:02:18]} 30. Rxf8+ {[%emt 0:01:00]} Rxf8 {[%emt 0:00:07]} 31. Qxb2 {[%emt 0:00:06]} Bxb2 {[%emt 0:02:29]} 32. Bxh5 {[%emt 0:00:13]} gxh5 {[%emt 0:01:40]} 33. Bxe3 {[%emt 0:00:11]} b5 {[%emt 0:02:23]} 34. Bd4 {[%emt 0:05:00]} Bxd4 {[%emt 0:02:53]} 35. Rxd4 {[%emt 0:00:09]} b4 {[%emt 0:00:19]} 36. d6 {[%emt 0:02:05]} gxh2 {[%emt 0:01:08]} 37. Rd5 {[%emt 0:01:28]} Rd8 {[%emt 0:00:10]} 38. Kxh2 {[%emt 0:02:01]} Kf7 {[%emt 0:01:59]} 39. Kg3 {[%emt 0:00:15]} Ke6 {[%emt 0:00:23]} 40. Rxa5 {[%emt 0:00:06]} Rxd6 {[%emt 0:00:16]} 41. Rxh5 {[%emt 0:00:25]} Rc6 {[%emt 0:00:56]} 42. Rxh7 {[%emt 0:01:02]} Kd5 {[%emt 0:00:24]} 1/2-1/2

[Event "World Senior chT-65 2019"]
[Site "Rhodes"]
[Date "2019.04.21"]
[Round "6.7"]
[White "Viglundsson, Bjorgvin"]
[Black "Hurme, Harri"]
[Result "1-0"]
[ECO "D91"]
[WhiteElo "2170"]
[BlackElo "2148"]
[Annotator "NA"]
[PlyCount "91"]
[EventDate "2019.04.16"]
[EventType "team-tourn"]
[EventCountry "GRE"]
[SourceTitle "playchess.com"]
[Source "ChessBase"]
[SourceQuality "1"]
[WhiteTeam "Iceland"]
[BlackTeam "Finland"]
[WhiteTeamCountry "ISL"]
[BlackTeamCountry "FIN"]
[TimeControl "40/5400+30:1800+30"]

1. c4 {[%emt 0:00:00]} g6 {[%emt 0:00:00]} 2. d4 {[%emt 0:00:00]} Nf6 {[%emt 0:00:00]} 3. Nc3 {[%emt 0:00:00]} d5 {[%emt 0:00:03]} 4. Nf3 {[%emt 0:00:10]} Bg7 {[%emt 0:00:13]} 5. Bg5 {[%emt 0:00:16]} Ne4 {[%emt 0:01:05]} 6. Bh4 {[%emt 0:00:10]} Nxc3 {[%emt 0:01:40]} 7. bxc3 {[%emt 0:00:04]} c5 {[%emt 0:01:00]} 8. cxd5 {[%emt 0:01:28]} Qxd5 {[%emt 0:00:29]} 9. e3 {[%emt 0:00:08]} cxd4 {[%emt 0:02:13]} 10. cxd4 {[%emt 0:00:03]} Nc6 {[%emt 0:01:24]} 11. Be2 {[%emt 0:00:16]} Qa5+ {[%emt 0:15:01]} 12. Qd2 {[%emt 0:00:10]} Qxd2+ {[%emt 0:01:49]} 13. Kxd2 {[%emt 0:00:04]} O-O {[%emt 0:02:47]} 14. Rac1 {[%emt 0:05:37]} e6 {[%emt 0:03:23]} 15. Rc2 {[%emt 0:11:07]} Bd7 {[%emt 0:05:24]} 16. Rb1 {[%emt 0:03:01]} b6 {[%emt 0:17:09]} 17. Ba6 {[%emt 0:05:19]} Na5 {[%emt 0:02:52]} 18. Rc7 {[%emt 0:06:15]} Bc8 {[%emt 0:03:54]} 19. Bxc8 {[%emt 0:02:55]} Rfxc8 {[%emt 0:00:27]} 20. Rbc1 {[%emt 0:00:14]} Rxc7 {[%emt 0:04:15]} 21. Rxc7 {[%emt 0:01:31]} h6 {[%emt 0:04:59]} 22. Be7 {[%emt 0:04:01]} b5 {[%emt 0:01:51]} 23. Bc5 {[%emt 0:01:32]} a6 {[%emt 0:03:20]} 24. Kc3 {[%emt 0:04:06]} Nc4 {[%emt 0:02:14]} 25. Nd2 {[%emt 0:05:40]} Nxd2 {[%emt 0:05:55]} 26. Kxd2 {[%emt 0:00:02]} Bf6 {[%emt 0:01:55]} 27. Kd3 {[%emt 0:01:17]} h5 {[%emt 0:01:32]} 28. h3 {[%emt 0:06:35]} h4 {[%emt 0:00:31]} 29. e4 {[%emt 0:02:04]} Kg7 {[%emt 0:02:28]} 30. Rb7 {[%emt 0:10:19]} Kg8 {[%emt 0:03:21]} 31. g3 {[%emt 0:12:06]} hxg3 {[%emt 0:00:30]} 32. fxg3 {[%emt 0:00:02]} Bg7 {[%emt 0:02:01]} 33. g4 {[%emt 0:04:08]} Bf6 {[%emt 0:02:52]} 34. d5 {[%emt 0:03:31]} exd5 {[%emt 0:01:50]} 35. exd5 {[%emt 0:00:03]} Rc8 {[%emt 0:00:59]} 36. Bd4 {[%emt 0:00:40]} Bxd4 {[%emt 0:03:10]} 37. Kxd4 {[%emt 0:00:02]} Kg7 {[%emt 0:00:46]} 38. g5 {[%emt 0:00:32]} Rc2 {[%emt 0:00:42]} 39. d6 {[%emt 0:00:27]} Rxa2 {[%emt 0:01:17]} 40. Kc5 {[%emt 0:00:00]} Rc2+ {[%emt 0:00:00]} 41. Kb6 {[%emt 0:02:47]} b4 {[%emt 0:05:42]} 42. d7 {[%emt 0:07:24]} Rd2 {[%emt 0:00:03]} 43. Kc7 {[%emt 0:00:12]} Rc2+ {[%emt 0:00:35]} 44. Kb8 {[%emt 0:00:17]} Rd2 {[%emt 0:01:03]} 45. Kc8 {[%emt 0:00:13]} Rc2+ {[%emt 0:02:20]} 46. Rc7 {[%emt 0:00:23]} 1-0

[Event "World Senior chT-65 2019"]
[Site "Rhodes"]
[Date "2019.04.21"]
[Round "6.8"]
[White "Kivimaki, Jaakko"]
[Black "Halldorsson, Bragi"]
[Result "1-0"]
[ECO "D04"]
[WhiteElo "2165"]
[BlackElo "2112"]
[Annotator "NA"]
[PlyCount "100"]
[EventDate "2019.04.16"]
[EventType "team-tourn"]
[EventCountry "GRE"]
[SourceTitle "playchess.com"]
[Source "ChessBase"]
[SourceQuality "1"]
[WhiteTeam "Finland"]
[BlackTeam "Iceland"]
[WhiteTeamCountry "FIN"]
[BlackTeamCountry "ISL"]
[TimeControl "40/5400+30:1800+30"]

1. Nf3 {[%emt 0:00:00]} d5 {[%emt 0:00:00]} 2. d4 {[%emt 0:00:00]} Nf6 {[%emt 0:00:00]} 3. e3 {[%emt 0:00:00]} Bg4 {[%emt 0:00:51]} 4. Nbd2 {[%emt 0:01:12]} Nbd7 {[%emt 0:03:09]} 5. h3 {[%emt 0:00:37]} Bh5 {[%emt 0:00:20]} 6. g4 {[%emt 0:01:10]} Bg6 {[%emt 0:00:14]} 7. Nh4 {[%emt 0:00:06]} e6 {[%emt 0:00:26]} 8. Nxg6 {[%emt 0:00:10]} hxg6 {[%emt 0:00:18]} 9. Bg2 {[%emt 0:00:04]} c5 {[%emt 0:02:49]} 10. O-O {[%emt 0:01:23]} Bd6 {[%emt 0:02:46]} 11. Re1 {[%emt 0:01:14]} Qb6 {[%emt 0:16:22]} 12. e4 {[%emt 0:12:31]} Nxe4 {[%emt 0:01:18]} 13. Nxe4 {[%emt 0:00:50]} dxe4 {[%emt 0:00:12]} 14. d5 {[%emt 0:05:55]} exd5 {[%emt 0:01:38]} 15. Qxd5 {[%emt 0:00:15]} Nf6 {[%emt 0:00:28]} 16. Qb3 {[%emt 0:03:13]} O-O {[%emt 0:02:17]} 17. g5 {[%emt 0:05:31]} Nh5 {[%emt 0:00:34]} 18. Qxb6 {[%emt 0:02:46]} axb6 {[%emt 0:00:14]} 19. Rxe4 {[%emt 0:01:30]} Rfe8 {[%emt 0:01:12]} 20. Be3 {[%emt 0:01:23]} Rxe4 {[%emt 0:02:11]} 21. Bxe4 {[%emt 0:00:16]} Nf4 {[%emt 0:02:05]} 22. Bxb7 {[%emt 0:05:32]} Nxh3+ {[%emt 0:02:48]} 23. Kg2 {[%emt 0:00:09]} Rb8 {[%emt 0:01:36]} 24. Kxh3 {[%emt 0:00:13]} Rxb7 {[%emt 0:00:33]} 25. Rd1 {[%emt 0:00:24]} Be7 {[%emt 0:00:33]} 26. a4 {[%emt 0:05:28]} f6 {[%emt 0:02:20]} 27. f4 {[%emt 0:02:55]} Kf7 {[%emt 0:00:07]} 28. c4 {[%emt 0:00:27]} Ke6 {[%emt 0:02:20]} 29. Kg4 {[%emt 0:00:32]} Ra7 {[%emt 0:01:32]} 30. b3 {[%emt 0:00:18]} Ra8 {[%emt 0:00:12]} 31. Re1 {[%emt 0:04:30]} Kf7 {[%emt 0:00:23]} 32. Rd1 {[%emt 0:02:21]} Ke6 {[%emt 0:00:14]} 33. Bf2 {[%emt 0:00:32]} Bd6 {[%emt 0:01:48]} 34. Rh1 {[%emt 0:04:44]} Be7 {[%emt 0:03:26]} 35. Rh7 {[%emt 0:02:58]} Kf7 {[%emt 0:01:42]} 36. gxf6 {[%emt 0:08:41]} Bxf6 {[%emt 0:00:12]} 37. Rh3 {[%emt 0:01:53]} Be7 {[%emt 0:02:01]} 38. Rd3 {[%emt 0:00:31]} Ke6 {[%emt 0:00:37]} 39. Rd5 {[%emt 0:01:39]} Ra7 {[%emt 0:01:20]} 40. Be1 {[%emt 0:00:00]} Ra8 {[%emt 0:00:00]} 41. Bc3 {[%emt 0:02:40]} Bf6 {[%emt 0:01:30]} 42. Be5 {[%emt 0:00:32]} Rd8 {[%emt 0:07:01]} 43. Bxf6 {[%emt 0:05:22]} Rxd5 {[%emt 0:00:14]} 44. cxd5+ {[%emt 0:00:04]} Kxf6 {[%emt 0:00:23]} 45. d6 {[%emt 0:05:57]} Ke6 {[%emt 0:00:48]} 46. Kg5 {[%emt 0:00:06]} Kxd6 {[%emt 0:00:09]} 47. Kxg6 {[%emt 0:00:04]} Kd5 {[%emt 0:00:44]} 48. Kxg7 {[%emt 0:00:10]} Ke4 {[%emt 0:02:34]} 49. Kf6 {[%emt 0:00:09]} Kxf4 {[%emt 0:00:07]} 50. Ke6 {[%emt 0:00:01]} Ke4 {[%emt 0:01:05] Kd5+} 1-0

[Event "World Senior chT-65 2019"]
[Site "Rhodes"]
[Date "2019.04.21"]
[Round "6.9"]
[White "Boehnisch, Manfred"]
[Black "Knaak, Rainer"]
[Result "0-1"]
[ECO "C48"]
[WhiteElo "2287"]
[BlackElo "2482"]
[Annotator "ChessBase"]
[PlyCount "80"]
[EventDate "2019.04.16"]
[EventType "team-tourn"]
[EventCountry "GRE"]
[SourceTitle "playchess.com"]
[Source "ChessBase"]
[SourceQuality "1"]
[WhiteTeam "Germany"]
[BlackTeam "Germany"]
[WhiteTeamCountry "GER"]
[BlackTeamCountry "GER"]
[TimeControl "40/5400+30:1800+30"]

1. e4 {[%emt 0:01:06]} Nc6 {[%emt 0:00:19]} 2. Nc3 {[%emt 0:00:47]} e5 {[%emt 0:03:24]} 3. Nf3 {[%emt 0:00:52]} Nf6 {[%emt 0:00:22]} 4. Bb5 {[%emt 0:00:55]} Nd4 {[%emt 0:04:02]} 5. Bc4 {[%emt 0:03:58]} Bc5 {[%emt 0:02:15]} 6. d3 {[%emt 0:00:54]} d6 {[%emt 0:08:48]} 7. Nxd4 {[%emt 0:08:48]} Bxd4 {[%emt 0:01:52]} 8. Ne2 {[%emt 0:01:09]} Bb6 {[%emt 0:01:04]} 9. O-O {[%emt 0:01:29]} c6 {[%emt 0:05:56]} 10. Bb3 {[%emt 0:07:41]} h6 {[%emt 0:11:50]} 11. c3 {[%emt 0:04:21]} O-O {[%emt 0:06:15]} 12. Be3 {[%emt 0:13:10]} d5 {[%emt 0:06:19]} 13. exd5 {[%emt 0:01:40]} Nxd5 {[%emt 0:01:02]} 14. Bxb6 {[%emt 0:00:46]} axb6 {[%emt 0:01:55]} 15. d4 {[%emt 0:01:02]} e4 {[%emt 0:01:25]} 16. c4 {[%emt 0:07:17]} Nf6 {[%emt 0:04:15]} 17. Nc3 {[%emt 0:03:05]} Bg4 {[%emt 0:06:12]} 18. Qd2 {[%emt 0:00:36]} Qd6 {[%emt 0:00:35]} 19. h3 {[%emt 0:01:48]} Bh5 {[%emt 0:00:56]} 20. Qe3 {[%emt 0:02:58]} Rfe8 {[%emt 0:01:07]} 21. d5 {[%emt 0:02:37]} Nd7 {[%emt 0:09:51]} 22. Nxe4 {[%emt 0:08:00]} Qg6 {[%emt 0:00:43]} 23. f3 {[%emt 0:03:24]} f5 {[%emt 0:00:08]} 24. dxc6 {[%emt 0:01:14]} bxc6 {[%emt 0:02:53]} 25. Qd2 {[%emt 0:01:23]} fxe4 {[%emt 0:06:54]} 26. c5+ {[%emt 0:00:13]} Kh8 {[%emt 0:00:24]} 27. Qxd7 {[%emt 0:00:26]} Rad8 {[%emt 0:02:27]} 28. Qc7 {[%emt 0:00:27]} Rd2 {[%emt 0:00:52]} 29. g4 {[%emt 0:02:28]} Qg5 {[%emt 0:00:39]} 30. Qg3 {[%emt 0:02:44]} Qxc5+ {[%emt 0:01:25]} 31. Kh1 {[%emt 0:00:11]} Bg6 {[%emt 0:00:12]} 32. f4 {[%emt 0:01:20]} e3 {[%emt 0:01:43]} 33. f5 {[%emt 0:00:11]} Bh7 {[%emt 0:00:02]} 34. Rae1 {[%emt 0:00:48]} Bg8 {[%emt 0:00:32]} 35. Bxg8 {[%emt 0:02:25]} Kxg8 {[%emt 0:00:03]} 36. f6 {[%emt 0:00:14]} Qd5+ {[%emt 0:05:26]} 37. Kg1 {[%emt 0:04:17]} gxf6 {[%emt 0:00:04]} 38. Rxf6 {[%emt 0:00:32]} Kg7 {[%emt 0:00:03]} 39. Qf3 {[%emt 0:01:21]} Rxb2 {[%emt 0:01:45]} 40. a4 {[%emt 0:00:00]} Qd2 {[%emt 0:00:00]} 0-1

[Event "World Senior chT-65 2019"]
[Site "Rhodes"]
[Date "2019.04.21"]
[Round "6.10"]
[White "Vogt, Lothar"]
[Black "Beltz, Robert"]
[Result "1-0"]
[ECO "B14"]
[WhiteElo "2362"]
[BlackElo "2158"]
[Annotator "NA"]
[PlyCount "43"]
[EventDate "2019.04.16"]
[EventType "team-tourn"]
[EventCountry "GRE"]
[SourceTitle "playchess.com"]
[Source "ChessBase"]
[SourceQuality "1"]
[WhiteTeam "Germany"]
[BlackTeam "Germany"]
[WhiteTeamCountry "GER"]
[BlackTeamCountry "GER"]
[TimeControl "40/5400+30:1800+30"]

1. c4 {[%emt 0:00:00]} c6 {[%emt 0:04:47]} 2. e4 {[%emt 0:00:00]} d5 {[%emt 0:00:08]} 3. exd5 {[%emt 0:00:07]} cxd5 {[%emt 0:00:15]} 4. d4 {[%emt 0:00:00]} Nf6 {[%emt 0:01:17]} 5. Nc3 {[%emt 0:00:00]} e6 {[%emt 0:02:10]} 6. Nf3 {[%emt 0:00:00]} Be7 {[%emt 0:01:02]} 7. c5 {[%emt 0:00:45]} O-O {[%emt 0:02:05]} 8. Bd3 {[%emt 0:00:04]} Nc6 {[%emt 0:01:45]} 9. a3 {[%emt 0:03:04]} a5 {[%emt 0:01:44]} 10. Na4 {[%emt 0:02:12]} Ne4 {[%emt 0:06:26]} 11. Nb6 {[%emt 0:03:04]} Ra7 {[%emt 0:01:26]} 12. O-O {[%emt 0:01:31]} Bf6 {[%emt 0:13:22]} 13. Be3 {[%emt 0:01:46]} g6 {[%emt 0:09:19]} 14. Bxe4 {[%emt 0:14:48]} dxe4 {[%emt 0:00:36]} 15. Nd2 {[%emt 0:00:04]} Bxd4 {[%emt 0:06:25]} 16. Nxe4 {[%emt 0:00:43]} Bxb2 {[%emt 0:04:56]} 17. Qxd8 {[%emt 0:01:07]} Rxd8 {[%emt 0:00:05]} 18. Rad1 {[%emt 0:00:20]} Rf8 {[%emt 0:00:02]} 19. Nd6 {[%emt 0:09:01]} Ne7 {[%emt 0:04:10]} 20. Bg5 {[%emt 0:00:05]} f6 {[%emt 0:07:39]} 21. Bh6 {[%emt 0:00:10]} Rd8 {[%emt 0:00:03]} 22. Bc1 {[%emt 0:01:21]} 1-0